fUSD/lending_fUSD_20250417
["ID","MTS","AMOUNT","RATE_DAILY","PERIOD"]
[358246434,1744876256194,-506.49131522,0.00049315,120]
[358246435,1744876256204,-1097.9,0.00049315,120]
[358246436,1744876256213,-500.0,0.00049315,120]
[358246437,1744876256223,-500.0,0.00049315,120]
[358246438,1744876256232,-1622.19,0.00049315,120]
[358246439,1744876256241,-7361.74,0.00049315,120]
[358246440,1744876256251,-151.0,0.00049315,14]
[358246441,1744876256260,-779.5,0.00049315,120]
[358246442,1744876256270,-2365.86,0.00049315,120]
[358246443,1744876256279,-500.0,0.00049315,120]
[358246444,1744876256289,-290.29028457,0.00049315,120]
[358246445,1744876256299,-169.579388,0.00049315,14]
[358246446,1744876256308,-500.0,0.00049315,120]
[358246447,1744876256318,-500.0,0.00049315,120]
[358246448,1744876256327,-500.0,0.00049315,120]
[358246449,1744876256338,-500.0,0.00049315,120]
[358246450,1744876256348,-500.0,0.00049315,120]
[358246451,1744876256357,-14690.6671068,0.00049323,4]
[358246452,1744876256366,-151.0,0.00049329,120]
[358246453,1744876256376,-151.0,0.00049329,120]
[358246454,1744876256386,-151.0,0.00049329,120]
[358246455,1744876256395,-151.0,0.00049329,120]
[358246456,1744876256405,-198.656338,0.00049329,120]
[358246457,1744876256414,-198.656338,0.00049329,120]
[358246458,1744876256424,-169.81,0.0004933,2]
[358246459,1744876256433,-151.0,0.00049339,120]
[358246460,1744876256443,-151.0,0.00049339,120]
[358246461,1744876256452,-151.0,0.00049339,120]
[358246462,1744876256461,-151.0,0.00049339,120]
[358246463,1744876256471,-151.0,0.00049339,90]
[358246464,1744876256481,-658.32958279,0.00049342,120]
[358246465,1744876256491,-435.48917781,0.00049358,15]
[358246466,1744876256500,-500.0,0.00049373,10]
[358246467,1744876256509,-500.0,0.00049373,10]
[358246468,1744876256519,-1558.95501591,0.00049389,15]
[358246469,1744876256529,-209.0,0.0004948,30]
[358246470,1744876256538,-14690.6671068,0.0004948,4]
[358246471,1744876256548,-185.339047,0.0004949,120]
[358246472,1744876256557,-185.339047,0.0004949,120]
[358246473,1744876256567,-322.416,0.0004949,120]
[358246474,1744876256577,-322.416,0.0004949,120]
[358246475,1744876256587,-151.0,0.0004949,120]
[358246476,1744876256596,-151.0,0.0004949,120]
[358246477,1744876256606,-151.0,0.0004949,30]
[358246478,1744876256615,-151.0,0.0004949,120]
[358246479,1744876256625,-447.528559,0.0004949,120]
[358246480,1744876256635,-447.528559,0.0004949,120]
[358246481,1744876256645,-151.0,0.0004949,120]
[358246482,1744876256655,-151.0,0.0004949,120]
[358246483,1744876256664,-14690.6671068,0.0004949,4]
[358246484,1744876256674,-500.0,0.00049499,120]
[358246485,1744876256683,-541.63,0.00049499,120]
[358246486,1744876256693,-57209.93449867,0.000495,7]
[358246487,1744876257076,-38142.82003248,0.000495,7]
[358246488,1744876257085,-151.0,0.000495,120]
[358246489,1744876257096,-151.0,0.000495,120]
[358246490,1744876257107,-151.0,0.000495,120]
[358246491,1744876257116,-151.0,0.000495,120]
[358246492,1744876257126,-151.0,0.000495,120]
[358246493,1744876257135,-151.0,0.000495,120]
[358246494,1744876257144,-244.664616,0.000495,120]
[358246495,1744876257154,-153.326205,0.000495,120]
[358246496,1744876257163,-151.0,0.000495,120]
[358246497,1744876257172,-151.0,0.000495,120]
[358246498,1744876257188,-188.274816,0.000495,120]
[358246499,1744876257198,-151.0,0.000495,120]
[358246500,1744876257207,-435.48917781,0.00049511,15]
[358246501,1744876257217,-658.32958279,0.00049534,120]
[358246502,1744876257226,-1558.95501591,0.00049572,15]
[358246503,1744876257235,-500.0,0.00049573,10]
[358246504,1744876257245,-254.39693239,0.00049573,7]
[358246505,1744876257254,-500.0,0.00049573,10]
[358246506,1744876257264,-500.0,0.00049573,10]
[358246507,1744876257274,-500.0,0.00049573,10]
[358246508,1744876257283,-500.0,0.00049573,10]
[358246509,1744876257293,-500.0,0.00049573,10]
[358246510,1744876257302,-500.0,0.00049573,10]
[358246511,1744876257312,-500.0,0.00049573,5]
[358246512,1744876257322,-501.93607589,0.00049573,10]
[358246513,1744876257331,-366.35636885,0.00049573,10]
[358246514,1744876257343,-168.67923687,0.00049573,10]
[358246515,1744876257353,-501.46586729,0.00049573,10]
[358246516,1744876257364,-302.187072,0.00049573,10]
[358246517,1744876257373,-500.0,0.00049573,10]
[358246518,1744876257383,-500.0,0.00049573,10]
[358246519,1744876257392,-502.16109153,0.00049573,10]
[358246520,1744876257401,-502.65807078,0.00049573,10]
[358246521,1744876257411,-151.0,0.00049573,120]
[358246522,1744876257420,-3436.536214,0.00049573,120]
[358246523,1744876257429,-2551.67626854,0.00049573,120]
[358246524,1744876257442,-884.85994546,0.00049573,120]
[358246525,1744876257451,-151.0,0.00049573,120]
[358246526,1744876257461,-151.0,0.00049573,120]
[358246527,1744876257470,-402.331132,0.00049573,120]
[358246528,1744876257480,-402.331132,0.00049573,120]
[358246529,1744876257489,-500.0,0.00049578,120]
[358246530,1744876257499,-500.0,0.00049578,120]
[358246531,1744876257509,-151.0,0.00049579,120]
[358246532,1744876257518,-151.0,0.00049579,120]
[358246533,1744876257528,-507.165441,0.00049579,120]
[358246534,1744876257537,-198.656338,0.00049579,120]
[358246535,1744876257546,-198.656338,0.00049579,120]
[358246536,1744876257556,-217.762955,0.00049579,120]
[358246537,1744876257565,-151.0,0.00049579,120]
[358246538,1744876257575,-151.0,0.00049579,120]
[358246539,1744876257584,-151.0,0.00049579,120]
[358246540,1744876257594,-151.0,0.00049579,120]
[358246541,1744876257603,-233.826331,0.00049579,120]
[358246542,1744876257612,-196.800929,0.00049579,120]
[358246543,1744876257621,-196.800929,0.00049579,120]
[358246544,1744876257630,-151.0,0.00049579,120]
[358246545,1744876257640,-151.0,0.00049579,120]
[358246546,1744876257650,-283.108421,0.00049579,120]
[358246547,1744876257659,-283.108421,0.00049579,120]
[358246548,1744876257668,-151.0,0.00049579,30]
[358246549,1744876257678,-152.156601,0.00049579,120]
[358246550,1744876257687,-447.528559,0.00049579,120]
[358246551,1744876257697,-447.528559,0.00049579,120]
[358246552,1744876257707,-151.0,0.00049579,120]
[358246553,1744876257716,-151.0,0.00049579,120]
[358246554,1744876257725,-151.0,0.00049579,120]
[358246555,1744876257734,-151.0,0.00049579,120]
[358246556,1744876257742,-151.0,0.00049579,120]
[358246557,1744876257752,-151.0,0.00049579,120]
[358246558,1744876257761,-151.0,0.00049579,120]
[358246559,1744876257770,-500.0,0.00049587,120]
[358246560,1744876257780,-500.0,0.00049588,120]
[358246561,1744876257789,-500.0,0.00049588,120]
[358246562,1744876257798,-500.0,0.00049588,120]
[358246563,1744876257807,-582.55270015,0.00049588,120]
[358246564,1744876257817,-541.63,0.00049588,120]
[358246565,1744876257826,-541.63,0.00049588,120]
[358246566,1744876257836,-541.63,0.00049588,120]
[358246567,1744876257844,-32729.35626839,0.00049589,2]
[358246568,1744876257856,-27657.16378,0.00049589,2]
[358246569,1744876257868,-20590.70074111,0.00049589,2]
[358246570,1744876257880,-379.24500001,0.00049589,2]
[358246571,1744876257892,-374.75402031,0.00049589,2]
[358246572,1744876257910,-854.07621752,0.00049589,2]
[358246573,1744876257921,-3491.99097485,0.00049589,2]
[358246574,1744876257933,-281.0,0.00049589,2]
[358246575,1744876257944,-25688.9267539,0.00049589,2]
[358246576,1744876260413,-138537.45227235,0.00049589,2]
[358246577,1744876260424,-380.9389093,0.00049589,60]
[358246578,1744876260433,-591.156374,0.00049589,120]
[358246579,1744876260443,-578.70543296,0.00049589,120]
[358246580,1744876260452,-558.60125942,0.00049589,120]
[358246581,1744876260463,-227.981738,0.00049589,120]
[358246582,1744876260473,-151.0,0.00049589,120]
[358246583,1744876260482,-500.0,0.00049589,120]
[358246584,1744876260492,-1611.74,0.00049589,120]
[358246585,1744876260502,-500.0,0.00049589,120]
[358246586,1744876260512,-772.09,0.00049589,120]
[358246587,1744876260521,-3077.05,0.00049589,120]
[358246588,1744876260531,-500.0,0.00049589,120]
[358246589,1744876260541,-151.0,0.00049589,120]
[358246590,1744876260551,-161.949802,0.00049589,120]
[358246591,1744876260560,-500.0,0.00049589,120]
[358246592,1744876260570,-500.0,0.00049589,120]
[358246593,1744876260579,-516.0,0.00049589,120]
[358246594,1744876260589,-151.0,0.00049589,90]
[358246595,1744876260598,-151.0,0.00049589,90]
[358246596,1744876260607,-151.0,0.00049589,90]
[358246597,1744876260617,-825.74,0.00049589,120]
[358246598,1744876260626,-500.0,0.00049589,120]
[358246599,1744876260635,-500.0,0.00049589,120]
[358246600,1744876260645,-500.0,0.00049589,120]
[358246601,1744876260654,-500.0,0.00049589,120]
[358246602,1744876260663,-500.0,0.00049589,120]
[358246603,1744876260673,-1329.86,0.00049589,120]
[358246604,1744876260683,-500.0,0.00049589,120]
[358246605,1744876260691,-1041.46,0.00049589,120]
[358246606,1744876260699,-500.0,0.00049589,120]
[358246607,1744876260708,-151.0,0.00049589,120]
[358246608,1744876260717,-151.0,0.00049589,120]
[358246609,1744876260727,-249.819346,0.00049589,120]
[358246610,1744876260737,-500.0,0.00049589,120]
[358246611,1744876260746,-995.71,0.00049589,120]
[358246612,1744876260756,-500.0,0.00049589,120]
[358246613,1744876260767,-500.0,0.00049589,120]
[358246614,1744876260777,-152.950529,0.00049589,120]
[358246615,1744876260788,-500.0,0.00049589,120]
[358246616,1744876260799,-561.46,0.00049589,30]
[358246617,1744876260809,-500.0,0.00049589,120]
[358246618,1744876260819,-500.0,0.00049589,120]
[358246619,1744876260830,-500.0,0.00049589,120]
[358246620,1744876260841,-500.0,0.00049589,120]
[358246621,1744876260851,-889.17,0.00049589,120]
[358246622,1744876260862,-1598.19,0.00049589,120]
[358246623,1744876260873,-500.0,0.00049589,120]
[358246624,1744876260883,-164.7089956,0.00049589,120]
[358246625,1744876260894,-2447.13,0.00049589,120]
[358246626,1744876260905,-934.81,0.00049589,120]
[358246627,1744876260915,-500.0,0.00049589,120]
[358246628,1744876260926,-500.0,0.00049589,120]
[358246629,1744876260937,-558.88,0.00049589,120]
[358246630,1744876260947,-500.0,0.00049589,120]
[358246631,1744876260959,-500.0,0.00049589,120]
[358246632,1744876260970,-500.0,0.00049589,120]
[358246633,1744876260980,-500.0,0.00049589,120]
[358246634,1744876260991,-496.75682802,0.00049589,120]
[358246635,1744876261001,-500.0,0.00049589,120]
[358246636,1744876261011,-500.0,0.00049589,120]
[358246637,1744876261025,-500.0,0.00049589,120]
[358246638,1744876261035,-120995.21,0.00049589,7]
[358246639,1744876261046,-500.0,0.00049589,120]
[358246640,1744876261056,-1597.3,0.00049589,120]
[358246641,1744876261067,-500.0,0.00049589,120]
[358246642,1744876261078,-724.18,0.00049589,2]
[358246643,1744876261089,-500.0,0.00049589,120]
[358246644,1744876261102,-500.0,0.00049589,120]
[358246645,1744876261112,-1073.23,0.00049589,120]
[358246646,1744876261123,-500.0,0.00049589,120]
[358246647,1744876261133,-852.63,0.00049589,120]
[358246648,1744876261143,-500.0,0.00049589,120]
[358246649,1744876261154,-500.0,0.00049589,120]
[358246650,1744876261164,-9618.82,0.00049589,2]
[358246651,1744876261174,-500.0,0.00049589,120]
[358246652,1744876261184,-155.481593,0.00049589,120]
[358246653,1744876261195,-500.0,0.00049589,120]
[358246654,1744876261206,-507.165441,0.00049589,120]
[358246655,1744876261216,-507.165441,0.00049589,120]
[358246656,1744876261226,-507.165441,0.00049589,120]
[358246657,1744876261236,-507.165441,0.00049589,120]
[358246658,1744876261247,-500.0,0.00049589,120]
[358246659,1744876261257,-500.0,0.00049589,120]
[358246660,1744876261269,-748.68,0.00049589,120]
[358246661,1744876261279,-507.6,0.00049589,120]
[358246662,1744876261290,-500.0,0.00049589,120]
[358246663,1744876261300,-500.0,0.00049589,120]
[358246664,1744876261311,-500.0,0.00049589,120]
[358246665,1744876261321,-500.0,0.00049589,120]
[358246666,1744876261331,-500.0,0.00049589,120]
[358246667,1744876261344,-500.0,0.00049589,120]
[358246668,1744876261354,-4167.06,0.00049589,120]
[358246669,1744876261365,-547.49,0.00049589,120]
[358246670,1744876261375,-762.47,0.00049589,120]
[358246671,1744876261386,-500.0,0.00049589,120]
[358246672,1744876261396,-1761.11,0.00049589,120]
[358246673,1744876261406,-500.0,0.00049589,120]
[358246674,1744876261417,-500.0,0.00049589,120]
[358246675,1744876261427,-547.82599039,0.00049589,120]
[358246676,1744876261437,-603.07,0.00049589,120]
[358246677,1744876261447,-677.96,0.00049589,120]
[358246678,1744876261459,-895.97,0.00049589,120]
[358246679,1744876261469,-2042.51,0.00049589,120]
[358246680,1744876261480,-2095.32,0.00049589,120]
[358246681,1744876261490,-500.0,0.00049589,120]
[358246682,1744876261500,-500.0,0.00049589,120]
[358246683,1744876261510,-783.72,0.00049589,120]
[358246684,1744876261521,-568.82,0.00049589,120]
[358246685,1744876261531,-670.78,0.00049589,120]
[358246686,1744876261541,-253.989997,0.00049589,120]
[358246687,1744876261551,-1727.55,0.00049589,120]
[358246688,1744876261561,-500.0,0.00049589,120]
[358246689,1744876261571,-198.656338,0.00049589,120]
[358246690,1744876261580,-198.656338,0.00049589,120]
[358246691,1744876261591,-198.656338,0.00049589,120]
[358246692,1744876261601,-198.656338,0.00049589,120]
[358246693,1744876261611,-500.0,0.00049589,120]
[358246694,1744876261620,-500.0,0.00049589,120]
[358246695,1744876261630,-151.0,0.00049589,120]
[358246696,1744876261640,-198.656338,0.00049589,120]
[358246697,1744876261651,-151.0,0.00049589,120]
[358246698,1744876261660,-198.656338,0.00049589,120]
[358246699,1744876261670,-198.656338,0.00049589,120]
[358246700,1744876261679,-198.656338,0.00049589,120]
[358246701,1744876261695,-1214.17,0.00049589,120]
[358246702,1744876261707,-185.339047,0.00049589,120]
[358246703,1744876261717,-185.339047,0.00049589,120]
[358246704,1744876261728,-185.339047,0.00049589,120]
[358246705,1744876261738,-185.339047,0.00049589,120]
[358246706,1744876261747,-185.339047,0.00049589,120]
[358246707,1744876261758,-185.339047,0.00049589,120]
[358246708,1744876261767,-322.416,0.00049589,120]
[358246709,1744876261777,-322.416,0.00049589,120]
[358246710,1744876261787,-322.416,0.00049589,120]
[358246711,1744876261796,-322.416,0.00049589,120]
[358246712,1744876261806,-322.416,0.00049589,120]
[358246713,1744876261816,-322.416,0.00049589,120]
[358246714,1744876261827,-291.50459342,0.00049589,120]
[358246715,1744876261836,-500.0,0.00049589,120]
[358246716,1744876261847,-500.0,0.00049589,120]
[358246717,1744876261857,-500.0,0.00049589,120]
[358246718,1744876261867,-325.42388591,0.00049589,120]
[358246719,1744876261877,-151.0,0.00049589,120]
[358246720,1744876261887,-151.0,0.00049589,120]
[358246721,1744876261899,-151.0,0.00049589,120]
[358246722,1744876261908,-500.0,0.00049589,120]
[358246723,1744876261919,-500.0,0.00049589,120]
[358246724,1744876261929,-563.29,0.00049589,120]
[358246725,1744876261939,-151.0,0.00049589,120]
[358246726,1744876261950,-155.051682,0.00049589,120]
[358246727,1744876261962,-765.17,0.00049589,120]
[358246728,1744876261971,-781.9,0.00049589,120]
[358246729,1744876261980,-500.0,0.00049589,120]
[358246730,1744876261990,-2735.7,0.00049589,120]
[358246731,1744876262000,-2102.94,0.00049589,120]
[358246732,1744876262009,-1420.11,0.00049589,120]
[358246733,1744876262018,-500.0,0.00049589,120]
[358246734,1744876262029,-500.0,0.00049589,120]
[358246735,1744876262039,-541.28,0.00049589,120]
[358246736,1744876262049,-500.0,0.00049589,120]
[358246737,1744876262059,-500.0,0.00049589,2]
[358246738,1744876262069,-500.0,0.00049589,120]
[358246739,1744876262080,-524.96,0.00049589,120]
[358246740,1744876262090,-500.0,0.00049589,120]
[358246741,1744876262105,-500.0,0.00049589,120]
[358246742,1744876262115,-776.69,0.00049589,120]
[358246743,1744876262125,-1055.54,0.00049589,120]
[358246744,1744876262135,-151.0,0.00049589,120]
[358246745,1744876262147,-151.0,0.00049589,120]
[358246746,1744876262157,-151.0,0.00049589,120]
[358246747,1744876262167,-500.0,0.00049589,120]
[358246748,1744876262178,-151.0,0.00049589,120]
[358246749,1744876262188,-151.0,0.00049589,120]
[358246750,1744876262198,-151.0,0.00049589,120]
[358246751,1744876262210,-1489.79,0.00049589,120]
[358246752,1744876262221,-1656.3,0.00049589,120]
[358246753,1744876262231,-1158.21,0.00049589,35]
[358246754,1744876262241,-500.0,0.00049589,120]
[358246755,1744876262251,-500.0,0.00049589,120]
[358246756,1744876262261,-500.0,0.00049589,120]
[358246757,1744876262270,-1223.23,0.00049589,120]
[358246758,1744876262281,-1296.94,0.00049589,120]
[358246759,1744876262291,-606.92,0.00049589,120]
[358246760,1744876262301,-500.0,0.00049589,120]
[358246761,1744876262311,-500.0,0.00049589,120]
[358246762,1744876262321,-1176.7,0.00049589,120]
[358246763,1744876262331,-1628.14,0.00049589,120]
[358246764,1744876262342,-1112.64,0.00049589,120]
[358246765,1744876262352,-500.0,0.00049589,120]
[358246766,1744876262362,-151.0,0.00049589,120]
[358246767,1744876262373,-151.0,0.00049589,120]
[358246768,1744876262383,-151.0,0.00049589,120]
[358246769,1744876262393,-2221.31,0.00049589,120]
[358246770,1744876262403,-500.0,0.00049589,120]
[358246771,1744876262412,-500.0,0.00049589,120]
[358246772,1744876262422,-500.0,0.00049589,120]
[358246773,1744876262432,-530.74,0.00049589,120]
[358246774,1744876262442,-862.16,0.00049589,120]
[358246775,1744876262451,-1379.41,0.00049589,120]
[358246776,1744876262464,-500.0,0.00049589,120]
[358246777,1744876262474,-507.47,0.00049589,120]
[358246778,1744876262484,-500.0,0.00049589,120]
[358246779,1744876262493,-997.54,0.00049589,120]
[358246780,1744876262503,-500.0,0.00049589,120]
[358246781,1744876262513,-1247.38,0.00049589,120]
[358246782,1744876262522,-500.0,0.00049589,120]
[358246783,1744876262531,-500.0,0.00049589,120]
[358246784,1744876262540,-500.0,0.00049589,120]
[358246785,1744876262550,-500.0,0.00049589,120]
[358246786,1744876262558,-519.16,0.00049589,120]
[358246787,1744876262568,-730.71,0.00049589,120]
[358246788,1744876262577,-946.46,0.00049589,120]
[358246789,1744876262586,-500.0,0.00049589,120]
[358246790,1744876262595,-490.299328,0.00049589,120]
[358246791,1744876262605,-490.299328,0.00049589,120]
[358246792,1744876262614,-490.299328,0.00049589,120]
[358246793,1744876262623,-386.018216,0.00049589,120]
[358246794,1744876262633,-500.0,0.00049589,120]
[358246795,1744876262643,-386.018216,0.00049589,120]
[358246796,1744876262652,-386.018216,0.00049589,120]
[358246797,1744876262663,-1007.48,0.00049589,120]
[358246798,1744876262673,-490.299328,0.00049589,120]
[358246799,1744876262684,-490.299328,0.00049589,120]
[358246800,1744876262694,-490.299328,0.00049589,120]
[358246801,1744876262704,-559.91,0.00049589,120]
[358246802,1744876262718,-500.0,0.00049589,120]
[358246803,1744876262729,-1373.68,0.00049589,120]
[358246804,1744876262739,-500.0,0.00049589,120]
[358246805,1744876262750,-500.0,0.00049589,30]
[358246806,1744876262760,-940.05,0.00049589,120]
[358246807,1744876262771,-500.0,0.00049589,120]
[358246808,1744876262781,-1470.933859,0.00049589,120]
[358246809,1744876262791,-500.0,0.00049589,120]
[358246810,1744876262802,-1470.933859,0.00049589,120]
[358246811,1744876262813,-1470.933859,0.00049589,120]
[358246812,1744876262822,-500.0,0.00049589,120]
[358246813,1744876262832,-1203.26,0.00049589,120]
[358246814,1744876262842,-825.67,0.00049589,120]
[358246815,1744876262853,-1470.933859,0.00049589,120]
[358246816,1744876262862,-1575.92,0.00049589,120]
[358246817,1744876262872,-1470.933859,0.00049589,120]
[358246818,1744876262881,-1470.933859,0.00049589,120]
[358246819,1744876262891,-500.0,0.00049589,120]
[358246820,1744876262901,-500.0,0.00049589,120]
[358246821,1744876262911,-500.0,0.00049589,120]
[358246822,1744876262921,-1004.58,0.00049589,120]
[358246823,1744876262931,-500.0,0.00049589,120]
[358246824,1744876262941,-1167.01,0.00049589,120]
[358246825,1744876262951,-500.0,0.00049589,120]
[358246826,1744876262961,-151.0,0.00049589,120]
[358246827,1744876262971,-701.01,0.00049589,120]
[358246828,1744876262980,-151.0,0.00049589,120]
[358246829,1744876262990,-151.0,0.00049589,120]
[358246830,1744876263000,-1323.83,0.00049589,120]
[358246831,1744876263010,-500.0,0.00049589,120]
[358246832,1744876263020,-151.0,0.00049589,120]
[358246833,1744876263029,-151.0,0.00049589,120]
[358246834,1744876263039,-151.0,0.00049589,120]
[358246835,1744876263050,-803.28,0.00049589,30]
[358246836,1744876263059,-507.89,0.00049589,120]
[358246837,1744876263069,-1748.54,0.00049589,120]
[358246838,1744876263080,-3514.34,0.00049589,120]
[358246839,1744876263090,-500.0,0.00049589,120]
[358246840,1744876263104,-500.0,0.00049589,120]
[358246841,1744876263114,-151.0,0.00049589,120]
[358246842,1744876263124,-151.0,0.00049589,120]
[358246843,1744876263135,-151.0,0.00049589,120]
[358246844,1744876263145,-500.0,0.00049589,120]
[358246845,1744876263155,-500.0,0.00049589,120]
[358246846,1744876263165,-1749.19,0.00049589,120]
[358246847,1744876263176,-500.0,0.00049589,120]
[358246848,1744876263186,-500.0,0.00049589,120]
[358246849,1744876263196,-500.0,0.00049589,120]
[358246850,1744876263216,-1134.15,0.00049589,120]
[358246851,1744876263229,-1115.45,0.00049589,120]
[358246852,1744876263240,-500.0,0.00049589,120]
[358246853,1744876263251,-1157.9,0.00049589,120]
[358246854,1744876263262,-1269.95,0.00049589,120]
[358246855,1744876263274,-500.0,0.00049589,120]
[358246856,1744876263286,-1020.0,0.00049589,120]
[358246857,1744876263298,-500.0,0.00049589,120]
[358246858,1744876263711,-500.0,0.00049589,120]
[358246859,1744876263725,-500.0,0.00049589,120]
[358246860,1744876263737,-151.0,0.00049589,120]
[358246861,1744876263745,-151.0,0.00049589,120]
[358246862,1744876263755,-151.0,0.00049589,120]
[358246863,1744876263765,-500.0,0.00049589,120]
[358246864,1744876263774,-1129.1,0.00049589,120]
[358246865,1744876263784,-1581.24,0.00049589,120]
[358246866,1744876263794,-568.86,0.00049589,120]
[358246867,1744876263804,-766.52,0.00049589,120]
[358246868,1744876263814,-500.0,0.00049589,120]
[358246869,1744876263824,-500.0,0.00049589,120]
[358246870,1744876263834,-500.0,0.00049589,120]
[358246871,1744876263844,-683.59,0.00049589,120]
[358246872,1744876263853,-500.0,0.00049589,120]
[358246873,1744876263863,-605.07,0.00049589,120]
[358246874,1744876263872,-500.0,0.00049589,120]
[358246875,1744876263882,-500.0,0.00049589,120]
[358246876,1744876263892,-1943.48,0.00049589,120]
[358246877,1744876263901,-500.0,0.00049589,120]
[358246878,1744876263911,-945.69,0.00049589,120]
[358246879,1744876263920,-500.0,0.00049589,120]
[358246880,1744876263930,-227.069273,0.00049589,120]
[358246881,1744876263939,-227.069273,0.00049589,120]
[358246882,1744876263948,-227.069273,0.00049589,120]
[358246883,1744876263957,-1873.76,0.00049589,120]
[358246884,1744876263966,-500.0,0.00049589,120]
[358246885,1744876263975,-500.0,0.00049589,120]
[358246886,1744876263984,-227.069273,0.00049589,120]
[358246887,1744876263994,-500.0,0.00049589,120]
[358246888,1744876264003,-227.069273,0.00049589,120]
[358246889,1744876264012,-227.069273,0.00049589,120]
[358246890,1744876264022,-500.0,0.00049589,120]
[358246891,1744876264032,-566.9,0.00049589,120]
[358246892,1744876264042,-500.0,0.00049589,120]
[358246893,1744876264051,-500.0,0.00049589,120]
[358246894,1744876264061,-536.75,0.00049589,120]
[358246895,1744876264071,-500.0,0.00049589,120]
[358246896,1744876264081,-235.487167,0.00049589,120]
[358246897,1744876264090,-500.0,0.00049589,120]
[358246898,1744876264102,-500.0,0.00049589,120]
[358246899,1744876264112,-500.0,0.00049589,120]
[358246900,1744876264122,-500.0,0.00049589,30]
[358246901,1744876264132,-1511.21,0.00049589,120]
[358246902,1744876264143,-2015.84,0.00049589,120]
[358246903,1744876264152,-500.0,0.00049589,120]
[358246904,1744876264162,-500.0,0.00049589,120]
[358246905,1744876264171,-576.1,0.00049589,120]
[358246906,1744876264181,-500.0,0.00049589,120]
[358246907,1744876264192,-503.02,0.00049589,120]
[358246908,1744876264202,-1485.3,0.00049589,120]
[358246909,1744876264212,-500.0,0.00049589,120]
[358246910,1744876264223,-616.82,0.00049589,120]
[358246911,1744876264233,-1889.42,0.00049589,120]
[358246912,1744876264244,-500.0,0.00049589,120]
[358246913,1744876264253,-521.54,0.00049589,120]
[358246914,1744876264263,-500.0,0.00049589,120]
[358246915,1744876264273,-151.0,0.00049589,120]
[358246916,1744876264282,-500.0,0.00049589,120]
[358246917,1744876264292,-151.0,0.00049589,120]
[358246918,1744876264301,-151.0,0.00049589,120]
[358246919,1744876264311,-1626.25,0.00049589,120]
[358246920,1744876264321,-151.0,0.00049589,120]
[358246921,1744876264331,-215.247688,0.00049589,120]
[358246922,1744876264343,-1000.0,0.00049589,120]
[358246923,1744876264353,-151.0,0.00049589,120]
[358246924,1744876264363,-163.364897,0.00049589,120]
[358246925,1744876264373,-263.861093,0.00049589,120]
[358246926,1744876264382,-1339.26,0.00049589,120]
[358246927,1744876264392,-1497.28,0.00049589,120]
[358246928,1744876264402,-500.0,0.00049589,120]
[358246929,1744876264412,-1832.25,0.00049589,120]
[358246930,1744876264421,-630.84,0.00049589,120]
[358246931,1744876264431,-292.98394296,0.00049589,120]
[358246932,1744876264441,-500.0,0.00049589,120]
[358246933,1744876264450,-500.0,0.00049589,120]